bitfinex/quotes_ETHUSD_20240928
["timestamp","ask_amount","ask_price","bid_price","bid_amount"]
[1727516170923,0.90106778,2671.3,2671.0,7.48774]
[1727516171487,0.90106778,2671.3,2671.0,3.7438]
[1727516171684,0.90106778,2671.3,2671.1,3.74376]
[1727516172178,0.90106778,2671.3,2671.0,3.7438]
[1727516172375,0.90106778,2671.3,2671.1,3.74377]
[1727516173422,0.90106778,2671.3,2671.0,3.7438]
[1727516173622,0.90106778,2671.3,2671.1,3.74367]
[1727516173784,0.14066778,2671.3,2671.2,3.74363]
[1727516174118,1.53856092,2671.5,2671.1,3.74377]
[1727516174321,1.53856092,2671.5,2671.3,3.74346]
[1727516174322,0.14073507,2671.4,2671.3,3.74346]
[1727516174898,0.14073507,2671.4,2671.3,4.53246]
[1727516175107,0.78476092,2671.9,2671.6,3.743]
[1727516175419,0.14053553,2671.8,2671.6,7.486]
[1727516175626,0.14053553,2671.8,2671.6,3.743]
[1727516177889,0.92529645,2671.8,2671.6,3.743]
[1727516179934,0.92529645,2671.8,2671.7,4.53193]
[1727516179935,0.14053553,2671.8,2671.7,4.53193]
[1727516180298,0.78476092,2672.0,2671.7,0.789]
[1727516180503,0.78476092,2672.0,2671.9,3.74265]
[1727516181935,0.92086669,2672.0,2671.9,3.74265]
[1727516182596,1.31376831,2672.0,2671.8,3.74271]
[1727516182937,0.7846273,2671.9,2671.8,3.74271]
[1727516183148,0.92069459,2671.9,2671.8,3.74271]
[1727516183446,0.92069459,2671.9,2671.7,4.53192]
[1727516183643,0.7846273,2671.8,2671.7,3.74292]
[1727516183949,0.92089129,2671.8,2671.7,3.74292]
[1727516184105,0.13626399,2671.8,2671.7,4.570418]
[1727516185348,0.13626399,2671.8,2671.7,3.74292]
[1727516186838,0.92089129,2671.8,2671.7,3.74292]
[1727516187145,0.13626399,2671.8,2671.7,3.74292]
[1727516189435,0.92089129,2671.8,2671.7,3.74292]
[1727516192767,1.70509443,2671.8,2671.2,3.74354]
[1727516192920,0.784601,2671.5,2671.3,3.74346]
[1727516193119,0.92070009,2671.4,2671.3,3.74346]
[1727516193655,0.92080372,2671.4,2671.2,3.74354]
[1727516193821,0.78470463,2671.3,2671.2,3.74354]
[1727516194013,0.13579807,2671.3,2671.2,3.74354]
[1727516195460,0.50090823,2671.3,2670.9,3.74397]
[1727516195625,0.50090823,2671.3,2670.7,0.809]
[1727516195626,0.78423277,2671.0,2670.8,3.7441]
[1727516195832,1.1769015,2671.1,2670.8,3.7441]
[1727516195833,0.78423277,2670.9,2670.8,3.7441]
[1727516196166,0.13566689,2670.9,2670.7,0.809]
[1727516196320,0.91989966,2670.9,2670.4,4.55368]
[1727516196520,0.78423277,2670.8,2670.4,4.55368]
[1727516196853,0.13544764,2670.7,2670.4,8.29832]
[1727516197057,0.78423277,2670.8,2670.4,4.55366]
[1727516197265,1.8860624,2670.8,2670.2,3.74496]
[1727516197430,1.8860624,2670.8,2670.2,3.74495]
[1727516197431,0.78423277,2670.4,2670.2,3.74495]
[1727516197764,0.78423277,2670.4,2670.3,3.74489]
[1727516197960,0.78423277,2670.5,2670.4,3.74475]
[1727516198160,0.78345237,2670.5,2670.4,3.74475]
[1727516198958,1.55265237,2670.6,2670.4,3.74475]
[1727516199393,0.7692,2670.6,2670.4,3.74475]
[1727516199867,0.7692,2670.6,2670.3,3.74488]
[1727516200158,1.55265237,2670.6,2670.4,3.74474]
[1727516200361,0.1347578,2670.5,2670.4,3.74474]
[1727516200826,0.1347578,2670.5,2670.4,4.493709]
[1727516201024,1.55265237,2670.9,2670.4,4.55374]
[1727516201266,1.55265237,2670.9,2670.6,7.48879]
[1727516201471,0.13479058,2670.8,2670.6,7.48879]
[1727516201803,0.13479058,2670.8,2670.7,3.74433]
[1727516202444,0.78345237,2671.1,2670.7,3.74433]
[1727516202645,0.13483982,2670.8,2670.7,3.74433]
[1727516202964,0.78345237,2671.3,2671.1,3.74369]
[1727516203329,0.78345237,2671.4,2671.2,3.74363]
[1727516203528,2.02345237,2671.5,2671.2,3.74363]
[1727516204031,0.13498196,2671.4,2671.2,3.74363]
[1727516204418,0.91843433,2671.4,2671.2,3.74363]
[1727516204821,0.13498196,2671.4,2671.3,3.74349]
[1727516205068,0.13498196,2671.4,2671.3,4.55249]
[1727516205970,0.13498196,2671.4,2671.3,10.96871912]
[1727516206952,1.24,2671.5,2671.4,6.74335]
[1727516207125,1.24,2671.5,2671.4,8.25201321]
[1727516207126,1.37515217,2671.5,2671.4,8.25201321]
[1727516207528,1.37515217,2671.5,2671.3,3.74349]
[1727516207824,1.37515217,2671.5,2671.3,3.0]
[1727516208042,1.37515217,2671.5,2671.2,3.0]
[1727516208854,1.37515217,2671.5,2671.0,3.809]
[1727516209054,1.37515217,2671.5,2670.7,4.50672403]
[1727516209055,2.94337014,2671.5,2671.1,3.74369]
[1727516209458,2.94337014,2671.5,2671.1,7.48738]
[1727516209658,1.27239953,2671.4,2671.1,3.74369]
[1727516210075,0.13512987,2671.3,2671.2,3.74363]
[1727516210574,2.02345237,2671.5,2671.2,3.74363]
[1727516210775,0.13511347,2671.3,2671.2,3.74363]
[1727516210975,2.02345237,2671.5,2671.2,3.74363]
[1727516211281,1.24,2671.5,2671.2,3.74363]
[1727516211464,2.02345237,2671.5,2671.2,3.74363]
[1727516211672,0.13513557,2671.4,2671.2,3.74363]
[1727516213265,0.13513557,2671.4,2671.1,3.74369]
[1727516213587,0.13513557,2671.4,2671.2,3.74362]
[1727516215487,0.13513557,2671.4,2671.1,3.74369]
[1727516216000,1.70336388,2671.4,2671.1,3.74369]
[1727516216211,0.78345237,2671.3,2671.0,6.74387]
[1727516216501,0.91991151,2671.4,2671.0,6.74387]
[1727516216502,0.13507426,2671.2,2671.0,6.74387]
[1727516216698,1.56822831,2671.4,2671.0,6.74387]
[1727516216962,0.13511276,2671.3,2671.0,6.74387]
[1727516218106,0.13511276,2671.3,2671.1,3.74375]
[1727516220134,0.78345237,2671.4,2671.1,3.74375]
[1727516220295,0.12870307,2671.2,2671.1,3.74375]
[1727516220646,0.78345237,2671.4,2671.1,3.74375]
[1727516220835,0.12870307,2671.2,2671.1,3.74375]
[1727516220997,0.78345237,2671.4,2671.1,3.74375]
[1727516221198,0.12870307,2671.2,2671.1,3.74375]
[1727516221704,0.78345237,2671.4,2671.1,3.74375]
[1727516221936,0.12870874,2671.3,2671.1,3.74375]
[1727516222829,0.461615,2671.3,2670.4,0.7828]
[1727516223000,1.57325237,2671.2,2670.4,0.7828]
[1727516223206,3.74393,2671.0,2670.5,3.74452]
[1727516223429,0.45273824,2670.9,2670.5,3.74452]
[1727516223713,0.58133382,2670.9,2670.5,3.74452]
[1727516224042,0.58133382,2670.9,2670.3,3.74485]
[1727516224043,0.7898,2670.8,2670.3,3.74485]
[1727516224204,0.21545862,2670.7,2670.3,3.74485]
[1727516224460,0.34420155,2670.7,2670.1,0.7828]
[1727516224667,0.12874293,2670.7,2670.6,3.74447]
[1727516225001,1.57325237,2671.1,2670.8,3.74406]
[1727516225299,1.57325237,2671.1,2670.9,3.74397]
[1727516225507,2.74055838,2671.1,2670.9,3.74397]
[1727516225795,1.57325237,2671.1,2670.9,3.74397]
[1727516227092,2.02345237,2671.2,2670.9,3.74397]
[1727516227495,0.12422504,2671.1,2670.9,3.74397]
[1727516228198,0.12422504,2671.1,2670.7,3.74423]
[1727516228403,0.90767741,2671.1,2670.7,3.74423]
[1727516228592,0.90767741,2671.1,2670.8,3.74412]
[1727516228908,0.12422504,2671.1,2670.8,3.74412]
[1727516229110,0.90767741,2671.1,2670.8,3.74412]
[1727516232388,0.78345237,2671.0,2670.8,3.74412]
[1727516232595,0.90767741,2671.1,2670.8,3.74412]
[1727516232819,2.02345237,2671.2,2670.9,3.74405]
[1727516233190,2.02345237,2671.2,2671.0,3.74391]
[1727516233891,0.78345237,2671.1,2671.0,3.74391]
[1727516234098,1.24,2671.2,2671.1,3.74377]
[1727516234281,1.24,2671.2,2670.9,3.74404]
[1727516234282,2.02345237,2671.3,2671.0,3.74388]
[1727516235314,2.02345237,2671.3,2671.1,3.74376]
[1727516235729,1.24,2671.3,2671.2,3.74363]
[1727516235940,1.24,2671.3,2671.1,3.74376]
[1727516236098,2.02345237,2671.3,2671.1,3.74365]
[1727516236298,0.12335233,2671.2,2671.1,3.74365]
[1727516236595,1.24,2671.3,2671.1,3.74365]
[1727516236909,0.12357196,2671.2,2671.1,3.74377]
[1727516237109,1.24,2671.3,2671.1,3.74377]
[1727516237110,1.24,2671.3,2671.2,3.74363]
[1727516237429,2.14706282,2671.3,2671.2,3.74363]
[1727516237602,1.36361045,2671.3,2671.2,3.74363]
[1727516238316,2.14706282,2671.3,2671.1,3.74377]
[1727516238520,2.14706282,2671.3,2671.1,7.48747]
[1727516241801,2.14706282,2671.3,2671.1,3.7437]
[1727516242124,2.14706282,2671.3,2670.9,6.74395]
[1727516242125,0.78286243,2671.2,2670.9,6.74395]
[1727516242330,0.90662638,2671.1,2670.9,6.74395]
[1727516242702,0.90662638,2671.1,2670.9,10.48793]
[1727516242932,0.90662638,2671.1,2670.9,6.74395]
[1727516243323,0.90662638,2671.1,2670.7,4.52953]
[1727516243324,0.78286243,2671.0,2670.8,3.0]
[1727516243516,0.12368694,2670.9,2670.8,3.74405]
[1727516246239,0.90654937,2670.9,2670.8,3.74405]
[1727516247129,0.12368694,2670.9,2670.8,3.74405]
[1727516248559,0.90654937,2670.9,2670.8,3.74405]
[1727516248764,0.12368694,2670.9,2670.8,3.74405]
[1727516249961,0.90654937,2670.9,2670.8,3.74405]
[1727516250173,0.12368694,2670.9,2670.8,3.74405]
[1727516250637,0.90654937,2670.9,2670.7,3.74423]
[1727516251032,0.78286243,2670.8,2670.7,3.74423]
[1727516251455,0.90644423,2670.8,2670.7,3.74423]
[1727516256042,0.1235818,2670.8,2670.7,7.16045912]
[1727516257352,0.1235818,2670.8,2670.7,8.62948203]
[1727516257567,0.1235818,2670.8,2670.7,7.16045912]
[1727516258047,0.90644423,2670.8,2670.7,3.74423]
[1727516259180,0.1235818,2670.8,2670.7,10.95755912]
[1727516259360,1.24,2671.1,2671.0,3.74391]
[1727516259538,1.24,2671.1,2671.0,10.95723912]
[1727516262151,1.35299096,2671.1,2671.0,10.95723912]
[1727516262971,1.24,2671.1,2671.0,10.95723912]
[1727516263182,1.24,2671.1,2671.0,12.42736703]
[1727516264539,2.02286243,2671.4,2671.3,3.74349]
[1727516264781,1.35294959,2671.4,2671.3,4.54929]
[1727516265894,1.35294959,2671.4,2671.3,8.72020391]
[1727516268396,1.35294959,2671.4,2671.3,9.12622461]
[1727516268592,1.35294959,2671.4,2671.3,8.32042461]
[1727516269269,1.35294959,2671.4,2671.3,5.32042461]
[1727516269885,2.10384959,2671.4,2671.3,3.74349]
[1727516270098,2.88671202,2671.4,2671.3,3.74349]
[1727516270679,2.10384959,2671.4,2671.3,3.74349]
[1727516271677,2.88671202,2671.4,2671.3,3.74349]
[1727516274359,2.13581202,2671.4,2671.3,3.74349]
[1727516280584,1.35294959,2671.4,2671.3,3.74349]
[1727516280803,2.13581202,2671.4,2671.3,3.74349]
[1727516281212,1.35294959,2671.4,2671.3,3.74349]
[1727516281406,2.13581202,2671.4,2671.3,3.74349]
[1727516283121,1.35294959,2671.4,2671.3,3.74349]
[1727516283309,2.13581202,2671.4,2671.3,3.74349]
[1727516284121,1.35294959,2671.4,2671.3,3.74349]
[1727516284286,1.35294959,2671.4,2671.3,4.50239]
[1727516287228,1.35294959,2671.4,2671.3,8.74359894]
[1727516287438,1.35294959,2671.4,2671.3,8.66873756]
[1727516287927,1.24,2671.4,2671.3,8.66873756]
[1727516291095,1.24,2671.7,2671.6,3.74307]
[1727516291307,1.24,2671.8,2671.7,3.74293]
[1727516292226,1.24,2671.8,2671.7,5.31960456]
[1727516292614,1.34989091,2671.8,2671.7,5.31960456]
[1727516292811,1.34989091,2671.8,2671.6,3.74307]
[1727516293015,0.801,2671.7,2671.6,3.74307]
[1727516293214,1.69390686,2671.7,2671.6,3.74307]
[1727516294146,1.69509833,2671.7,2671.6,3.74307]
[1727516294433,1.69509833,2671.7,2671.6,5.31974456]
[1727516295937,0.89409833,2671.7,2671.6,5.31974456]
[1727516296437,0.11004443,2671.7,2671.6,5.31974456]
[1727516296816,2.0240539,2671.8,2671.6,5.31974456]
[1727516297124,2.0240539,2671.8,2671.7,3.74293]
[1727516299907,2.13417051,2671.8,2671.7,3.74293]
[1727516301425,1.35011661,2671.8,2671.7,3.74293]
[1727516301629,2.13525257,2671.8,2671.7,7.80457156]
[1727516301835,1.35011661,2671.8,2671.7,8.53491746]
[1727516302661,1.24,2671.8,2671.7,8.53491746]
[1727516302948,1.34661356,2671.8,2671.7,8.53491746]
[1727516303105,1.24,2671.8,2671.7,8.53491746]
[1727516306038,1.24,2672.1,2672.0,3.74251]
[1727516306277,1.34720609,2672.1,2672.0,6.09798456]
[1727516306835,1.34720609,2672.1,2672.0,9.09798456]
[1727516307035,1.34720609,2672.1,2672.0,10.52059364]
[1727516311566,1.34720609,2672.1,2672.0,9.74179364]
[1727516311798,1.34720609,2672.1,2672.0,8.31918456]
[1727516312658,1.34720609,2672.1,2672.0,4.57667456]
[1727516313153,2.10980609,2672.1,2672.0,4.57667456]
[1727516313675,2.10980609,2672.1,2672.0,8.31918456]
[1727516315659,1.34720609,2672.1,2672.0,8.31918456]
[1727516317078,0.7626,2672.0,2671.8,1.57667456]
[1727516317281,0.7626,2672.0,2671.9,3.0]
[1727516318708,0.7626,2672.0,2671.6,3.0]
[1727516318709,1.15906375,2672.0,2671.6,3.0]
[1727516318877,1.94419971,2672.0,2671.6,3.0]
[1727516319082,0.78513596,2671.8,2671.6,3.0]
[1727516319277,1.47149908,2671.8,2671.6,6.74306]
[1727516319495,0.68636312,2671.8,2671.6,6.74306]
[1727516319669,1.54773596,2671.9,2671.6,6.74306]
[1727516319865,0.78513596,2671.8,2671.6,6.74306]
[1727516320101,0.7626,2671.7,2671.3,3.74341]
[1727516320280,0.7626,2671.7,2671.2,3.74358]
[1727516320281,0.7626,2671.5,2671.2,3.74358]
[1727516320493,1.54773596,2671.5,2671.2,3.74358]
[1727516320704,0.78513596,2671.4,2671.2,3.74358]
[1727516321223,0.10644531,2671.3,2671.2,3.74358]
[1727516322323,0.10644531,2671.3,2671.1,3.74371]
[1727516322615,0.10644531,2671.3,2671.2,5.32030456]
[1727516324007,0.89158127,2671.3,2671.2,5.32030456]
[1727516324317,0.10644531,2671.3,2671.2,5.32030456]
[1727516325611,0.10644531,2671.3,2671.2,6.22671102]
[1727516326025,0.78513596,2671.5,2671.2,2.48308102]
[1727516326226,0.78513596,2671.5,2671.4,5.32002456]
[1727516326791,2.02513596,2671.5,2671.4,5.32002456]
[1727516328204,2.13109718,2671.5,2671.4,5.32002456]
[1727516329131,2.13109718,2671.5,2671.4,1.57667456]
[1727516330418,2.13109718,2671.5,2670.9,3.74399]
[1727516330419,2.53815705,2671.5,2671.1,3.74367]
[1727516330620,1.54680596,2671.4,2671.1,3.74367]
[1727516331000,0.89010274,2671.3,2671.0,5.32056456]
[1727516331201,2.13010274,2671.3,2671.0,5.32056456]
[1727516331404,1.34589678,2671.3,2671.0,5.32056456]
[1727516333104,2.13010274,2671.3,2671.0,5.32056456]
[1727516333405,2.13010274,2671.3,2670.9,3.0]
[1727516333406,0.7735,2671.2,2670.9,3.0]
[1727516333602,0.10576493,2671.1,2670.9,3.0]
[1727516334114,0.10576493,2671.1,2670.9,6.74403]
[1727516334343,0.10576493,2671.1,2671.0,1.57667456]
[1727516335025,0.10576493,2671.1,2671.0,8.32058456]
[1727516335608,1.34576493,2671.1,2671.0,8.32058456]
[1727516336207,1.34576493,2671.1,2671.0,9.91784302]
[1727516336611,1.24,2671.1,2671.0,9.91784302]
[1727516337537,1.34564893,2671.1,2671.0,9.91784302]
[1727516341460,1.34564893,2671.1,2671.0,8.34116846]
[1727516341665,1.34564893,2671.1,2671.0,6.74391]
[1727516345931,1.24,2671.1,2671.0,6.74391]
[1727516347278,1.24,2671.1,2671.0,7.50931]
[1727516347577,1.24,2671.5,2671.1,3.74365]
[1727516347774,1.24,2671.5,2671.1,5.32032456]
[1727516348879,0.10582476,2671.4,2671.1,5.32032456]
[1727516350369,0.10582476,2671.4,2671.1,3.74365]
[1727516350740,0.818,2671.3,2671.1,3.74365]
[1727516351137,0.10574779,2671.2,2671.1,3.74365]
[1727516351543,0.818,2671.3,2671.1,3.74365]
[1727516351773,0.10574779,2671.2,2671.1,3.74365]
[1727516351975,0.10574779,2671.2,2670.9,5.32072456]
[1727516352138,0.818,2671.3,2670.9,5.32072456]
[1727516352342,0.1057093,2671.1,2670.9,5.32072456]
[1727516352538,0.818,2671.3,2671.0,3.74391]
[1727516352777,1.60041739,2671.3,2671.0,3.74391]
[1727516352989,0.818,2671.3,2671.0,3.74391]
[1727516353334,2.058,2671.3,2671.0,3.74391]
[1727516354493,2.84041739,2671.3,2671.0,3.74391]
[1727516354837,3.61614574,2671.3,2670.9,5.32072456]
[1727516355088,3.61614574,2671.3,2670.9,9.06469456]
[1727516355382,0.78241739,2671.2,2670.9,5.32064456]
[1727516356186,0.10569362,2671.1,2670.9,5.32063456]
[1727516356388,0.10569362,2671.1,2671.0,3.74391]
[1727516356685,2.02241739,2671.3,2671.1,3.74367]
[1727516356873,0.10579482,2671.2,2671.1,5.32034456]
[1727516357197,2.02241739,2671.3,2671.2,3.74363]
[1727516357479,1.24,2671.3,2671.2,3.74363]
[1727516357650,2.02241739,2671.3,2671.1,1.57667456]
[1727516358273,2.02241739,2671.3,2671.1,5.32040456]
[1727516359451,0.78241739,2671.2,2671.1,1.57667456]
[1727516359646,0.88808599,2671.2,2671.1,1.57667456]
[1727516360149,0.1056686,2671.2,2671.1,1.57667456]
[1727516360363,0.88808599,2671.2,2671.1,1.57667456]
[1727516360574,0.78241739,2671.2,2671.1,1.57667456]
[1727516360776,0.88808599,2671.2,2671.1,1.57667456]
[1727516361360,0.1056686,2671.2,2671.1,1.57667456]
[1727516362189,1.17362609,2671.2,2671.1,1.57667456]
[1727516362392,1.27923197,2671.2,2671.1,1.57667456]
[1727516363190,1.27923197,2671.2,2671.1,5.32044456]
[1727516363764,2.51923197,2671.2,2671.1,10.12424602]
[1727516363969,1.34560588,2671.2,2671.1,12.27967951]
[1727516364145,1.56483478,2672.0,2671.9,0.8158]
[1727516364146,0.78559072,2672.0,2671.9,0.8158]
[1727516364347,1.96286483,2672.4,2672.1,3.74237]
[1727516364348,0.78559072,2672.2,2672.1,3.74237]
[1727516364547,0.78559072,2672.2,2672.1,5.31904456]
[1727516365057,1.95921681,2672.3,2672.2,3.74223]
[1727516365299,0.78559072,2672.3,2672.2,3.74223]
[1727516365787,0.78559072,2672.4,2672.3,3.74209]
[1727516365999,0.78559072,2672.4,2672.3,5.31876456]
[1727516366147,0.78559072,2672.4,2672.3,3.74209]
[1727516366352,0.78559072,2672.5,2672.3,3.74209]
[1727516366846,0.87822838,2672.4,2672.3,3.74209]
[1727516367287,0.09263766,2672.4,2672.3,8.85137656]
[1727516367488,0.09263766,2672.4,2672.3,8.77653774]
[1727516367691,0.78559072,2672.9,2672.8,3.74139]
[1727516367920,1.95921681,2673.1,2672.9,3.74125]
[1727516368234,1.59939072,2673.2,2673.0,3.74111]
[1727516368439,0.78559072,2673.3,2673.1,3.74097]
[1727516368602,0.78559072,2673.4,2673.2,3.74083]
[1727516368946,1.59939072,2673.5,2673.2,3.74083]
[1727516369231,0.8138,2673.5,2673.3,3.74061]
[1727516369724,0.8138,2673.5,2673.1,3.74097]
[1727516369924,0.8138,2673.5,2673.1,7.48183]
[1727516370227,1.09110168,2673.5,2673.1,7.48183]
[1727516370431,1.09110168,2673.5,2673.1,3.74086]
[1727516370635,0.78559072,2673.9,2673.6,3.74027]
[1727516370838,1.59939072,2674.0,2673.6,7.48045]
[1727516371074,1.59939072,2674.0,2673.7,3.73999]
[1727516371075,0.8138,2674.0,2673.7,3.73999]
[1727516375003,0.8138,2674.0,2673.8,3.73998]
[1727516375808,0.8138,2674.0,2673.6,7.48036]
[1727516376008,0.8138,2674.0,2673.6,3.74018]
[1727516377177,0.8138,2674.0,2673.7,3.74003]
[1727516377442,0.8138,2674.0,2673.8,3.73997]
[1727516377846,0.8138,2674.0,2673.7,3.74003]
[1727516378144,0.0909912,2673.9,2673.7,3.74003]
[1727516379705,0.8138,2674.0,2673.7,3.74003]
[1727516379944,0.09097553,2673.9,2673.7,3.74003]
[1727516381611,0.8138,2674.0,2673.7,3.74003]
[1727516381953,0.09118917,2673.9,2673.7,3.74003]
[1727516383550,0.09118917,2673.9,2673.7,7.48007]
[1727516383747,0.09118917,2673.9,2673.7,8.228077]
[1727516383907,0.09118917,2673.9,2673.7,4.488037]
[1727516384108,0.09118917,2673.9,2673.8,3.73999]
[1727516384741,0.09118917,2673.9,2673.7,3.74003]
[1727516384949,0.7845,2674.2,2673.7,3.74003]
[1727516385243,0.09110374,2673.8,2673.7,3.74003]
[1727516385408,0.7845,2674.2,2673.7,3.74003]
[1727516385609,0.09110374,2673.8,2673.7,3.74003]
[1727516385809,0.7845,2674.2,2673.7,7.48009]
[1727516386054,0.09110374,2673.8,2673.7,3.74003]
[1727516386214,0.7845,2674.2,2673.7,7.48008]
[1727516386407,0.09110374,2673.8,2673.7,7.48008]
[1727516386615,0.7845,2674.2,2673.7,8.5695288]
[1727516386842,0.09110374,2673.8,2673.7,3.74003]
[1727516387009,0.7845,2674.2,2673.7,7.48008]
[1727516387210,0.09110374,2673.8,2673.7,3.74003]
[1727516387447,0.7845,2674.2,2673.7,3.74003]
[1727516387652,0.09110374,2673.8,2673.7,3.74003]
[1727516387941,0.7845,2674.2,2673.8,3.73995]
[1727516388153,0.7845,2674.2,2673.7,3.74003]
[1727516388337,0.7845,2674.2,2673.8,3.73993]
[1727516389028,0.09121903,2674.1,2673.8,3.73993]
[1727516389224,0.09121903,2674.1,2673.7,3.74003]
[1727516389225,0.09121903,2674.1,2673.9,3.73982]
[1727516389750,0.09121903,2674.1,2673.7,8.26814]
[1727516390253,0.09121903,2674.1,2673.7,9.84239366]
[1727516390614,0.09121903,2674.1,2673.8,3.73996]
[1727516391369,0.09121903,2674.1,2673.9,3.73985]
[1727516392454,0.7845,2674.4,2674.0,5.31396366]
[1727516392637,0.7845,2674.4,2674.1,3.73949]
[1727516392811,0.09169966,2674.3,2674.1,7.47898]
[1727516393216,0.09169966,2674.3,2674.1,3.73949]
[1727516393662,0.09169966,2674.3,2674.0,1.57425366]
[1727516393832,0.09169966,2674.3,2674.1,3.73955]
[1727516397264,0.09169966,2674.3,2673.6,3.0]
[1727516397265,3.73968,2674.1,2673.6,3.0]
[1727516397465,0.45872797,2674.1,2673.6,3.7402]
[1727516397665,0.09171429,2674.0,2673.6,3.7402]
[1727516398325,3.73957,2674.1,2673.6,3.7402]
[1727516398660,0.09182929,2674.0,2673.6,3.7402]
[1727516398972,8.23493,2674.2,2673.6,3.7402]
[1727516399130,0.09165396,2673.9,2673.6,3.7402]
[1727516399331,4.94494,2674.2,2673.6,3.7402]
[1727516399552,0.09173082,2674.1,2673.6,3.7402]
[1727516401462,3.83134082,2674.1,2673.6,3.7402]
[1727516401780,4.7089689,2674.1,2673.6,3.7402]
[1727516401981,0.9693589,2674.1,2673.6,3.7402]
[1727516402283,0.09173082,2674.1,2673.6,3.7402]
[1727516402966,3.83130082,2674.1,2673.5,9.05488366]
[1727516403148,3.83130082,2674.1,2673.5,5.31455366]
[1727516403483,4.7089249,2674.1,2673.6,3.74025]
[1727516403686,0.9693549,2674.1,2673.7,3.7401]
[1727516403847,0.09173082,2674.1,2673.7,3.7401]
[1727516406688,0.09173082,2674.1,2673.6,3.74019]
[1727516406896,0.7559,2674.0,2673.6,3.74019]
[1727516407192,0.09165396,2673.9,2673.6,3.74019]
[1727516407694,0.09165396,2673.9,2673.7,3.74005]
[1727516410196,0.09165396,2673.9,2673.8,3.73999]
[1727516410574,0.09165396,2673.9,2673.7,3.7401]
[1727516410898,0.09165396,2673.9,2673.6,3.74025]
[1727516411062,0.09165396,2673.9,2673.6,7.48044]
[1727516412065,0.09165396,2673.9,2673.7,3.74012]
[1727516412266,0.87724468,2673.9,2673.7,3.74012]
[1727516413207,1.31440524,2673.9,2673.4,3.74045]
[1727516413371,0.78502076,2673.7,2673.5,3.74039]
[1727516413705,0.09154412,2673.6,2673.5,3.74039]
[1727516414268,0.87656488,2673.6,2673.5,3.74039]
[1727516416202,1.26517021,2673.6,2673.5,3.74039]
[1727516416910,1.25717021,2673.6,2673.5,3.74039]
[1727516417365,2.4026789,2673.6,2673.4,3.74045]
[1727516417570,1.17854861,2673.5,2673.4,3.74045]
[1727516417795,1.17214861,2673.5,2673.4,3.74045]
[1727516418109,1.26332048,2673.5,2673.4,3.74045]
[1727516418404,1.26172048,2673.5,2673.4,3.74045]
[1727516418706,0.09117187,2673.5,2672.8,0.7679]
[1727516419002,0.78559289,2673.1,2673.0,6.741]
[1727516419213,0.78399289,2673.1,2673.0,6.741]
[1727516419410,0.87415763,2673.1,2673.0,6.741]
[1727516419611,0.86855763,2673.1,2673.0,6.741]
[1727516420112,0.86695763,2673.1,2673.0,6.741]
[1727516420282,0.86375763,2673.1,2673.0,6.741]
[1727516420475,0.86055763,2673.1,2673.0,6.741]
[1727516420670,0.86055763,2673.1,2673.0,3.741]
[1727516420977,0.08936474,2673.1,2673.0,3.741]
[1727516421397,1.81267083,2673.1,2672.7,3.7414]
[1727516421609,1.66205427,2673.1,2672.7,3.7414]
[1727516421912,1.66205427,2673.1,2672.9,3.74123]
[1727516422211,1.66205427,2673.1,2672.7,5.31565366]
[1727516422383,1.66205427,2673.1,2672.7,3.7414]
[1727516423672,2.47385778,2673.1,2672.7,3.7414]
[1727516425318,0.902672,2673.1,2672.7,3.7414]
[1727516427519,0.902672,2673.1,2672.7,7.48285]
[1727516427716,2.07753382,2673.1,2672.7,7.48285]
[1727516428081,2.07753382,2673.1,2672.7,3.7414]
[1727516429123,1.26573031,2673.1,2672.7,3.7414]
[1727516429297,1.26573031,2673.1,2672.3,1.21864774]
[1727516429298,0.09086849,2673.1,2673.0,3.74111]
[1727516429806,1.17486182,2673.4,2673.1,3.74093]
[1727516430213,0.08704674,2673.3,2673.1,3.74093]
[1727516430515,0.86996576,2673.3,2673.1,3.74093]
[1727516430721,0.86996576,2673.3,2673.1,5.31518366]
[1727516430881,0.08704674,2673.3,2673.2,7.50873]
[1727516431081,0.78291902,2673.5,2673.2,7.50873]
[1727516431290,0.78291902,2673.6,2673.4,3.74046]
[1727516431928,1.17486182,2673.7,2673.4,3.74046]
[1727516431929,0.78291902,2673.5,2673.4,3.74046]
[1727516432806,0.78291902,2673.5,2673.3,1.57425366]
[1727516432991,0.78291902,2673.5,2673.3,5.31491366]
[1727516433726,0.15763069,2673.4,2673.3,5.31491366]
[1727516436706,0.15763069,2673.4,2673.3,1.57425366]
[1727516436909,0.15763069,2673.4,2673.3,3.74069]
[1727516439040,0.15763069,2673.4,2673.3,6.29730303]
[1727516439535,0.78291902,2673.6,2673.5,3.74041]
[1727516439756,0.94060489,2673.6,2673.5,3.74041]
[1727516439895,1.72050489,2673.6,2673.3,3.74069]
[1727516440192,0.78291902,2673.5,2673.3,7.48121]
[1727516440396,0.78291902,2673.5,2673.3,3.7406]
[1727516440605,0.15229225,2673.4,2673.3,3.7406]
[1727516444409,0.15229225,2673.4,2673.0,3.74099]
[1727516444410,2.31806138,2673.4,2673.0,3.74099]
[1727516444610,0.78364948,2673.2,2673.1,3.74086]
[1727516445039,0.9359194,2673.2,2673.1,3.74086]
[1727516445756,0.9359194,2673.2,2673.0,3.74099]
[1727516446524,0.9359194,2673.2,2673.0,7.48202]
[1727516446928,0.9359194,2673.2,2673.0,3.74099]
[1727516447658,0.9359194,2673.2,2673.0,7.48202]
[1727516448035,0.9359194,2673.2,2673.0,3.74099]
[1727516448847,0.9359194,2673.2,2672.8,3.7413]
[1727516449013,0.9359194,2673.2,2672.9,3.74123]
[1727516449014,0.78364948,2673.1,2672.9,3.74123]
[1727516449411,0.15204485,2673.0,2672.9,3.74123]
[1727516450037,0.15204485,2673.0,2672.7,3.74143]
[1727516450351,0.15204485,2673.0,2672.8,3.74126]
[1727516450852,0.15204485,2673.0,2672.7,3.74143]
[1727516451050,0.15204485,2673.0,2672.7,7.48289]
[1727516451415,0.15204485,2673.0,2672.8,3.74138]
[1727516452225,0.93569433,2673.0,2672.8,3.74138]
[1727516452414,0.93569433,2673.0,2672.9,3.74125]
[1727516452617,0.15204485,2673.0,2672.9,4.51055]
[1727516453028,0.78364948,2673.2,2673.0,3.74107]
[1727516453349,0.78364948,2673.1,2673.0,3.74107]